Cogmind - Beta 13 @@@ ROGUE MODE // 2024.04.30 @ 23:33:20 Player: Cherman0 Result: Destroyed by Y-54 Guardian with Gatling Laser Performance ------------- Evolutions (4) 2000 Regions Visited (14) 2800 Robots Destroyed (172) 860 Value Destroyed (4504) 4504 Prototype IDs (34) 680 Alien Tech Used (0) 0 Bonus (613) 613 TOTAL SCORE: 11457 Bonus ------- High Alert Combat Kills 108 Follower Combat Kills 593 Met Data Miner 300 Friendly Fire -388 Cogmind --------- Core Integrity 0/850 Matter 296/300 Energy 39/100 System Corruption 6% Temperature Cool (12) Movement Core (400) Ox7 Location -6/Factory Parts ------- > --- POWER (2) -------- (None) > --- PROPULSION (4) --- (None) > --- UTILITY (7) ------ Improved Cooling System Large Storage Unit Enhanced Optical Array Improved Signal Interpreter Improved Hacking Suite > --- WEAPON (2) ------- (None) > --- INVENTORY (15) --- Advanced Weight Redist. System Advanced Visual Processing Unit Makeshift Transmission Jammer System Shield System Shield Component Analysis Suite Improved Grenade Launcher Peak State ------------ > --- POWER ------------ Light Nuclear Core Mini Fusion Reactor > --- PROPULSION ------- Cooled Airjet Cooled Airjet Cooled Airjet Cooled Airjet > --- UTILITY ---------- Large Storage Unit Gravity Neutralizer Advanced Sensor Array Improved Signal Interpreter Centrium Light Armor Plating Improved Hacking Suite Advanced Hacking Suite > --- WEAPON ----------- Precision Beam Rifle Precision Beam Rifle > --- INVENTORY -------- Light Fission Core Cooled Airjet Combat Airjet Power Amplifier Improved Cooling System Advanced Visual Processing Unit Makeshift Transmission Jammer System Shield System Shield Component Analysis Suite Precision Beam Rifle Precision Beam Rifle Improved Proton Missile Launcher Mini Grenade Launcher Great Maul [Rating: 80] Favorites ----------- Power Heavy Ion Engine Engine Heavy Ion Engine Power Core Light Nuclear Core Reactor Mini Fusion Reactor Propulsion Light Treads Treads Light Treads Leg Aluminum Leg Hover Unit Cooled Airjet Utility Large Storage Unit Device Improved Sensor Array Storage Large Storage Unit Processor Improved Signal Interpreter Hackware Hacking Suite Protection Improved Light Armor Plating Weapon Precision Beam Rifle Energy Gun Precision Beam Rifle Energy Cannon Heavy Particle Cannon Ballistic Gun Assault Rifle Ballistic Cannon Light Cannon Launcher Mini Grenade Launcher Impact Weapon Great Maul Build | -11 -10 -10 -9 -9 -8 -8 -7 -7 -7 -7 -7 -7 -6 -6 ------- Run | Yrd Mat Min Mat Min Mat Sto Fac Was Fac Low Low Dat Pro Fac Slots Evolved 8 | . . . 2 . 2 . 2 . . . . . . 2 Power 1 | . . . . . . . . . . . . . . 1 Propulsion 2 | . . . 1 . . . 1 . . . . . . . Utility 5 | . . . 1 . 2 . 1 . . . . . . 1 Weapon . | . . . . . . . . . . . . . . . Parts Attached 241 | 4 15 . 48 2 43 29 5 . 17 . . . 3 75 Power 18 | . 5 . . . 2 2 . . 3 . . . . 6 Engine 6 | . 3 . . . 2 . . . . . . . . 1 Core 6 | . 2 . . . . . . . 1 . . . . 3 Reactor 6 | . . . . . . 2 . . 2 . . . . 2 Propulsion 49 | 2 2 . 10 . 17 4 3 . 2 . . . . 9 Treads 30 | 2 2 . 10 . 13 3 . . . . . . . . Leg . | . . . . . . . . . . . . . . . Wheel . | . . . . . . . . . . . . . . . Hover 19 | . . . . . 4 1 3 . 2 . . . . 9 Flight . | . . . . . . . . . . . . . . . Utility 100 | 1 5 . 24 . 14 11 2 . 3 . . . 3 37 Device 65 | 1 3 . 16 . 8 9 2 . 2 . . . 1 23 Storage 4 | . 2 . . . 1 . . . . . . . . 1 Processor 3 | . . . . . 2 . . . . . . . . 1 Hackware 6 | . . . 1 . 1 . . . . . . . 1 3 Protection 22 | . . . 7 . 2 2 . . 1 . . . 1 9 Artifact . | . . . . . . . . . . . . . . . Weapon 74 | 1 3 . 14 2 10 12 . . 9 . . . . 23 Energy Gun 27 | . . . . . 3 8 . . 4 . . . . 12 Energy Cannon 16 | . 1 . 9 1 5 . . . . . . . . . Ballistic Gun 1 | 1 . . . . . . . . . . . . . . Ballistic Cannon 4 | . 2 . 1 . . 1 . . . . . . . . Launcher 12 | . . . 3 1 2 1 . . 2 . . . . 3 Special Weapon . | . . . . . . . . . . . . . . . Impact Weapon 14 | . . . 1 . . 2 . . 3 . . . . 8 Slashing Weapon . | . . . . . . . . . . . . . . . Piercing Weapon . | . . . . . . . . . . . . . . . Special Melee Weapon . | . . . . . . . . . . . . . . . Unidentified Prototypes 12 | . 1 . . . 5 5 . . . . . . . 1 Corrupted Parts 1 | . . . . . . . . . . . . . 1 . System Corruption 3 | . . . . . . . . . . . . . 3 . Parts Lost 28 | . . . . . 1 . . . . . . . . 27 Power 4 | . . . . . . . . . . . . . . 4 Propulsion 9 | . . . . . . . . . . . . . . 9 Utility 7 | . . . . . . . . . . . . . . 7 Weapon 8 | . . . . . 1 . . . . . . . . 7 Highest Loss Streak 15 | . . . . . 1 . . . . . . . . 15 To Critical Strikes . | . . . . . . . . . . . . . . . Average Slot Usage (%) 98 | . 99 100 99 100 99 99 100 100 99 100 100 100 100 89 Engine 7 | . 12 14 11 11 9 2 . . . . . . . . Reactor 2 | . . . . . . 5 7 7 6 7 7 7 7 3 Treads 22 | . 28 28 32 33 26 25 . . . . . . . . Hover 5 | . . . . . . 1 30 30 30 30 30 30 30 22 Device 12 | . 14 14 11 11 14 8 15 15 15 15 15 15 17 14 Storage 9 | . 14 14 11 11 9 9 7 7 7 7 7 7 7 6 Processor 4 | . . . . . 8 9 7 7 7 7 7 7 7 6 Hackware 4 | . . . 2 . 3 9 7 7 7 7 7 7 7 12 Protection 6 | . . . 8 11 9 8 7 7 7 7 7 7 4 3 Energy Gun 5 | . . . . . 4 15 15 15 10 15 15 15 15 10 Energy Cannon 9 | . 12 14 18 21 13 . . . . . . . . . Ballistic Cannon 3 | . 14 14 3 . . . . . . . . . . . Naked Turns . | . . . . . . . . . . . . . . . Heaviest Build 49 | 13 35 35 47 44 49 43 37 36 38 36 36 36 36 47 Greatest Support 96 | 40 40 40 60 60 84 96 45 45 60 44 44 44 44 47 Greatest Overweight (x) 15 | . . . . . 15 . . . 1 . . . . 9 Average Overweight (x) . | . . . . . . . . . . . . . . . Largest Inventory Capacity 15 | 8 15 15 15 15 15 15 15 15 15 15 15 15 15 15 Average Capacity 14 | 8 11 15 15 15 15 15 15 15 15 15 15 15 15 15 Most Carried 15 | 6 13 15 15 15 15 15 15 15 15 14 15 15 15 15 Average Carried 13 | 2 9 14 14 15 14 14 12 13 14 14 14 15 15 13 Final Capacity 15 | 8 15 15 15 15 15 15 15 15 15 15 15 15 15 15 Final Carried 15 | 4 13 15 15 15 15 15 12 15 14 14 15 15 15 7 Class Distribution -------------------- 53% | Mutant 40% | Scavenger-Mutant 5% | Hacker-Mutant Dominant Class ---------------- Mutant | -10/Materials Mutant | -10/Mines Mutant | -9/Materials Mutant | -9/Mines Scavenger-Mutant | -8/Materials Scavenger-Mutant | -8/Storage Scavenger-Mutant | -7/Factory Scavenger-Mutant | -7/Waste Scavenger-Mutant | -7/Factory Scavenger-Mutant | -7/Lower Caves Scavenger-Mutant | -7/Lower Caves Scavenger-Mutant | -7/Data Miner Scavenger-Mutant | -6/Proximity Caves Hacker-Mutant | -6/Factory Resources | -11 -10 -10 -9 -9 -8 -8 -7 -7 -7 -7 -7 -7 -6 -6 ----------- Run | Yrd Mat Min Mat Min Mat Sto Fac Was Fac Low Low Dat Pro Fac Matter Collected 3471 | 300 480 19 640 53 517 358 . . 143 105 88 . 47 721 Remotely . | . . . . . . . . . . . . . . . Salvage Created 6721 | 193 317 81 1869 7 1673 698 . . 192 41 . . . 1650 Parts 360 | 16 26 5 114 4 104 27 . . 10 . . . . 54 Haulers Intercepted 14 | . 2 . 3 . 6 3 . . . . . . . . Recyclers Shooed 6 | 1 . . . . . . . . 1 . . . . 4 Parts Field Recycled . | . . . . . . . . . . . . . . . Retrieved Matter . | . . . . . . . . . . . . . . . Parts Self-Destructed . | . . . . . . . . . . . . . . . Prevented . | . . . . . . . . . . . . . . . Kills | -11 -10 -10 -9 -9 -8 -8 -7 -7 -7 -7 -7 -7 -6 -6 ------- Run | Yrd Mat Min Mat Min Mat Sto Fac Was Fac Low Low Dat Pro Fac Combat Hostiles Destroyed 102 | . 9 2 28 3 26 8 . . 3 . . . . 23 Melee 3 | . . . . . . . . . . . . . . 3 Guns 25 | . . . . . 4 6 . . 2 . . . . 13 Cannons 47 | . 9 2 20 . 16 . . . . . . . . . AOE 17 | . . . 8 3 6 . . . . . . . . . Classes Destroyed 15 | 2 4 . 5 . 2 . . . 1 . . . . 1 Worker 9 | . . . 4 . . . . . 3 . . . . 2 Builder 6 | . . . 1 . 1 . . . . . . . . 4 Tunneler 7 | 5 . . 1 . . . . . . . . . . 1 Hauler 14 | . 2 . 3 . 6 3 . . . . . . . . Recycler 11 | 1 . . 5 . . 1 . . . . . . . 4 Mechanic 2 | . . . 1 . 1 . . . . . . . . . Operator 2 | . . . 1 . 1 . . . . . . . . . Watcher 16 | . 3 . 4 . 5 2 . . . . . . . 2 Swarmer 29 | . 5 . 7 3 3 . . . 2 . . . . 9 Grunt 47 | . 4 2 15 . 14 3 . . . . . . . 9 Brawler 2 | . . . . . . . . . 1 . . . . 1 Duelist 2 | . . . . . 2 . . . . . . . . . Sentry 18 | . . . 8 . 5 4 . . . . . . . 1 Hunter 3 | . . . . . 2 1 . . . . . . . . Programmer 3 | . . . . . . . . . . . . . . 3 Decomposer 2 | . . . . . . . . . . 2 . . . . Thug 1 | . . . 1 . . . . . . . . . . . Best Kill Streak 7 | 4 2 2 7 3 5 3 . . 2 . . . . 5 Combat Bots Only 5 | . 2 2 5 3 3 3 . . 1 . . . . 5 Max Kills in Single Turn 2 | 1 1 1 2 1 2 1 . . 1 1 . . . 1 Gunslinging . | . . . . . . . . . . . . . . . Exploded 2 | . . . 2 1 2 . . . . . . . . . Melee 1 | . . . . . . . . . . . . . . 1 Uniques/NPCs Destroyed . | . . . . . . . . . . . . . . . Combat | -11 -10 -10 -9 -9 -8 -8 -7 -7 -7 -7 -7 -7 -6 -6 -------- Run | Yrd Mat Min Mat Min Mat Sto Fac Was Fac Low Low Dat Pro Fac Hostile Shots Fired 697 | . 32 4 82 6 96 58 . . 65 3 . . . 351 Missed 230 | . 6 1 38 2 27 23 . . 22 2 . . . 109 Damage Taken 6201 | . 236 43 542 70 1160 455 . . 726 31 . . . 2938 Core 1297 | . 42 . 49 35 104 61 . . 148 . . . . 858 Absorbed by Shields . | . . . . . . . . . . . . . . . Regen/Repaired (Parts) 434 | . . . 118 . 129 187 . . . . . . . . Core Remaining (%) 82 | 100 . 83 . 79 . 70 . . . . . . 78 . Volleys Fired 375 | 10 34 3 88 3 86 39 1 . 30 4 . . . 77 Largest 2 | 2 2 2 2 1 2 2 2 . 2 2 . . . 2 Hottest 150 | 40 95 95 150 33 150 122 122 . 122 122 . . . 122 Shots Fired 682 | 20 68 6 162 3 161 70 2 . 34 8 1 . . 147 Gun 291 | 20 4 . . . 19 66 2 . 27 8 1 . . 144 Cannon 361 | . 64 6 156 . 135 . . . . . . . . . Launcher 30 | . . . 6 3 7 4 . . 7 . . . . 3 Special . | . . . . . . . . . . . . . . . Kinetic 85 | 20 37 3 25 . . . . . . . . . . . Thermal 567 | . 31 3 131 . 154 66 2 . 27 8 1 . . 144 Explosive 28 | . . . 6 3 7 4 . . 7 . . . . 1 Electromagnetic 2 | . . . . . . . . . . . . . . 2 Robot Hit Streak 35 | 5 5 4 11 7 19 25 16 . 19 10 . . . 35 Robot Miss Streak 8 | 1 8 1 7 . 3 1 . . 2 . . . . 3 Penetration Max . | . . . . . . . . . . . . . . . Secondary Targets 3 | . . . . . 1 . . . . . . . . 2 Max Gunslinging Chain 1 | . . . . . 1 . . . . . . . . 1 Shots Hit Robots 484 | 13 36 4 98 2 103 57 2 . 23 6 . . . 140 Core Hits 234 | 7 14 2 55 3 60 20 1 . 12 2 . . . 58 Critical Kills 2 | . 1 . . . . . . . . . . . . 1 Critical Parts Destroyed 4 | . . . . . . 1 . . . . . . . 3 Critical Strikes 35 | . 2 . . . 3 10 . . 2 3 . . . 15 Burn 28 | . . . . . 3 9 . . 2 3 . . . 11 Meltdown 1 | . 1 . . . . . . . . . . . . . Blast 1 | . 1 . . . . . . . . . . . . . Smash 5 | . . . . . . 1 . . . . . . . 4 Melee Attacks 66 | . . . 1 . . 6 . . 8 . . . . 51 Impact 66 | . . . 1 . . 6 . . 8 . . . . 51 Slashing . | . . . . . . . . . . . . . . . Piercing . | . . . . . . . . . . . . . . . Sneak Attacks 7 | . . . . . . 1 . . 1 . . . . 5 Combat Hostiles . | . . . . . . . . . . . . . . . Follow-up Attacks . | . . . . . . . . . . . . . . . Damage Inflicted 12247 | 174 631 84 2688 194 3080 1131 33 . 797 101 . . . 3334 Guns 3973 | 174 28 . . . 251 1019 33 . 377 101 . . . 1990 Cannons 5006 | . 597 73 2111 . 2225 . . . . . . . . . Explosions 1794 | . . . 545 194 564 1 . . 284 . . . . 206 Melee 1367 | . . . . . . 111 . . 123 . . . . 1133 Ramming 107 | . 6 11 32 . 40 . . . 13 . . . . 5 Kinetic 803 | 174 364 37 228 . . . . . . . . . . . Thermal 8176 | . 261 36 1883 . 2476 1019 33 . 377 101 . . . 1990 Explosive 1642 | . . . 545 194 564 1 . . 284 . . . . 54 Electromagnetic 152 | . . . . . . . . . . . . . . 152 Impact 1367 | . . . . . . 111 . . 123 . . . . 1133 Slashing . | . . . . . . . . . . . . . . . Piercing . | . . . . . . . . . . . . . . . Highest Corruption 11 | . . . . . 1 1 1 11 11 11 11 11 11 6 Average Corruption 3 | . . . . . 1 1 1 8 11 11 11 11 9 1 Corruption Purged 4 | . . . . . . . . . . . . . 4 . Corruption Blocked . | . . . . . . . . . . . . . . . Effects 105 | . . . . . 12 18 . 3 30 6 10 1 6 19 Message Errors 27 | . . . . . 4 1 . . 7 . 5 1 2 7 Matter Fused 25 | . . . . . 2 4 . 1 8 1 2 . 3 4 Heat Flow Errors 9 | . . . . . 4 1 . . . 1 1 . . 2 Energy Discharges 16 | . . . . . 1 7 . 1 5 . . . . 2 Data Loss (minor) 10 | . . . . . . 3 . . 4 2 . . . 1 Data Loss (major) 5 | . . . . . 1 1 . . 2 . 1 . . . Misfires 2 | . . . . . . . . . . 1 1 . . . Alerts 4 | . . . . . . 1 . . . . . . 1 2 Misdirections 1 | . . . . . . . . 1 . . . . . . Weapon Failures 6 | . . . . . . . . . 4 1 . . . 1 Overload Shots . | . . . . . . . . . . . . . . . Overflow Damage 566 | . 2 . 68 . 30 111 . . . . . . . 355 Projectiles 61 | . 2 . 26 . 30 . . . . . . . . 3 Explosions 64 | . . . 42 . . . . . . . . . . 22 Melee 441 | . . . . . . 111 . . . . . . . 330 Knockbacks 11 | . 1 1 1 . 1 . . . 1 . . . . 6 Impact 7 | . . . . . 1 . . . 1 . . . . 5 Kinetic 3 | . 1 1 1 . . . . . . . . . . . Secondary 1 | . . . . . . . . . . . . . . 1 Self-Inflicted Damage 198 | . . . . 39 . . . . 69 . . . . 90 Shots 7 | . . . . 1 . . . . 2 . . . . 4 Rammed 18 | . 2 3 3 . 3 . . . 1 . . . . 6 Targets Rammed 19 | . 2 3 4 . 3 . . . 1 . . . . 6 Kicked . | . . . . . . . . . . . . . . . Crushed 1 | . . . 1 . . . . . . . . . . . Highest Temperature 438 | . 305 115 438 . 372 144 66 . 233 264 233 . . 360 Average Temperature 76 | . 89 62 69 . 79 31 37 . 72 144 98 . . 91 Received Heat Transfer 1671 | . 48 24 255 . 405 117 . . 168 . . . . 654 Effects 5 | . . . 3 . 2 . . . . . . . . . Energy Bleed 1 | . . . . . 1 . . . . . . . . . Interference 3 | . . . 3 . . . . . . . . . . . Damage (minor) 1 | . . . . . 1 . . . . . . . . . Siege Activations . | . . . . . . . . . . . . . . . Robots Corrupted 1 | . . . . . . . . . . . . . . 1 Combat Hostiles 1 | . . . . . . . . . . . . . . 1 Parts Fried 14 | . . . . . . 2 . . . . . . . 12 Impact Corruptions 15 | . . . . . . 1 . . . . . . . 14 Robots Melted 7 | . 1 . . . . 2 . . 1 . . . . 3 Combat Hostiles 5 | . . . . . . 2 . . 1 . . . . 2 Parts Melted 34 | . . . 4 . 6 12 . . 2 1 . . . 9 Heat Transferred 17316 | . 555 74 3256 . 4070 2812 74 . 962 444 . . . 5069 Parts Sabotaged . | . . . . . . . . . . . . . . . Parts Stolen . | . . . . . . . . . . . . . . . Parts Stripped . | . . . . . . . . . . . . . . . Power Chain Reactions 1 | . . . . . . . . . . . . . . 1 Alert | -11 -10 -10 -9 -9 -8 -8 -7 -7 -7 -7 -7 -7 -6 -6 ------- Run | Yrd Mat Min Mat Min Mat Sto Fac Was Fac Low Low Dat Pro Fac Peak Influence 523 | 30 184 156 407 216 523 382 102 50 497 . . . . 333 Initial 138 | . 19 . 1 126 5 138 13 35 35 . . . . . Average 160 | 13 49 64 240 111 244 120 50 45 246 . . . . 114 Maximum Alert Level 2 | . . . 2 1 2 1 . . 2 . . . . 1 Low Security (%) 62 | 100 100 100 23 56 42 76 100 100 35 . . . . 80 Level 1 29 | . . . 72 43 27 23 . . 46 . . . . 19 Level 2 8 | . . . 3 . 29 . . . 18 . . . . . Level 3 . | . . . . . . . . . . . . . . . Level 4 . | . . . . . . . . . . . . . . . Level 5 . | . . . . . . . . . . . . . . . High Security . | . . . . . . . . . . . . . . . Max Security . | . . . . . . . . . . . . . . . Squads Dispatched 29 | . . . 4 . 8 1 1 . 5 . . . . 10 Investigation 11 | . . . 2 . 4 1 1 . 1 . . . . 2 Extermination 4 | . . . . . . . . . . . . . . 4 Reinforcement 10 | . . . 2 . 1 . . . 3 . . . . 4 Assault . | . . . . . . . . . . . . . . . Garrison 4 | . . . . . 3 . . . 1 . . . . . Intercept . | . . . . . . . . . . . . . . . Searches Triggered . | . . . . . . . . . . . . . . . Construction Impeded 2 | . . . . . . . . . 1 . . . . 1 Haulers Reinforced 1 | . . . . . . . . . . . . . . 1 Active Scanning Responses . | . . . . . . . . . . . . . . . Cargo Convoy Interrupts . | . . . . . . . . . . . . . . . Stealth | -11 -10 -10 -9 -9 -8 -8 -7 -7 -7 -7 -7 -7 -6 -6 --------- Run | Yrd Mat Min Mat Min Mat Sto Fac Was Fac Low Low Dat Pro Fac Distress Signals 17 | . 1 . 3 . 3 3 . . 3 . . . . 4 Communications Jammed 5 | . . . . . . . . . 5 . . . . . Distress Signals 4 | . . . . . . . . . 4 . . . . . Times Spotted 221 | . 19 7 39 3 43 28 4 6 24 1 . . . 47 Peak Tracking Total 9 | . 3 2 5 3 5 5 4 6 9 1 . . . 5 Tactical Retreats 21 | . 3 . . . 2 1 1 . 9 . . . . 5 Traps | -11 -10 -10 -9 -9 -8 -8 -7 -7 -7 -7 -7 -7 -6 -6 ------- Run | Yrd Mat Min Mat Min Mat Sto Fac Was Fac Low Low Dat Pro Fac Traps Triggered 8 | . . . . . 3 1 1 . 3 . . . . . Indirectly . | . . . . . . . . . . . . . . . Trap Hack Attempts . | . . . . . . . . . . . . . . . Triggered . | . . . . . . . . . . . . . . . Disarmed . | . . . . . . . . . . . . . . . Reprogrammed . | . . . . . . . . . . . . . . . Reused . | . . . . . . . . . . . . . . . Traps Extracted . | . . . . . . . . . . . . . . . Installed . | . . . . . . . . . . . . . . . Triggered . | . . . . . . . . . . . . . . . Machines | -11 -10 -10 -9 -9 -8 -8 -7 -7 -7 -7 -7 -7 -6 -6 ---------- Run | Yrd Mat Min Mat Min Mat Sto Fac Was Fac Low Low Dat Pro Fac Machines Disabled 13 | . 1 . 3 . 1 3 . . 1 . . . . 4 Max in Single Turn 2 | . 1 . 1 . 1 1 . . 1 . . . . 2 Garrison Access 1 | . . . . . 1 . . . . . . . . . Machines Repaired . | . . . . . . . . . . . . . . . Machines Dismantled . | . . . . . . . . . . . . . . . Machines Sabotaged . | . . . . . . . . . . . . . . . Overloaded Fab Kills . | . . . . . . . . . . . . . . . Hacking | -11 -10 -10 -9 -9 -8 -8 -7 -7 -7 -7 -7 -7 -6 -6 --------- Run | Yrd Mat Min Mat Min Mat Sto Fac Was Fac Low Low Dat Pro Fac Machines Accessed 82 | . 11 . 14 . 14 13 2 . 11 . 1 4 . 12 Terminals 50 | . 8 . 10 . 9 9 1 . 7 . . . . 6 Fabricators 4 | . . . . . . . . . 1 . . . . 3 Repair Stations 7 | . 1 . 2 . 1 2 . . . . . . . 1 Recycling Units 7 | . 2 . . . 1 2 1 . 1 . . . . . Scanalyzers 6 | . . . 2 . 2 . . . . . . . . 2 Garrison Access 3 | . . . . . 1 . . . 2 . . . . . Total Hacks 240 | . 40 . 35 . 48 30 4 . 24 . 1 30 . 28 Successful 134 | . 19 . 15 . 27 18 1 . 7 . 1 30 . 16 Failed 105 | . 20 . 20 . 21 12 3 . 17 . . . . 12 Catastrophic 27 | . 3 . 9 . 3 3 2 . 6 . . . . 1 Database Lockouts 1 | . 1 . . . . . . . . . . . . . Manual 102 | . 31 . 12 . 19 13 4 . 16 . . . . 7 Terminals 139 | . 34 . 25 . 29 17 3 . 17 . . . . 14 Fabricators 8 | . . . . . . . . . 2 . . . . 6 Repair Stations 20 | . 2 . 6 . 2 7 . . . . . . . 3 Recycling Units 18 | . 4 . . . 4 6 1 . 3 . . . . . Scanalyzers 21 | . . . 4 . 12 . . . . . . . . 5 Garrison Access 3 | . . . . . 1 . . . 2 . . . . . Terminal Hacks 76 | . 10 . 8 . 12 9 . . 3 . 1 30 . 3 Record 11 | . . . . . . . . . . . . 11 . . Part Schematic 11 | . 1 . . . . . . . . . . 10 . . Robot Schematic 6 | . . . . . . . . . . . . 6 . . Robot Analysis 2 | . 2 . . . . . . . . . . . . . Prototype ID Bank 12 | . 4 . 2 . 2 1 . . . . . 3 . . Open Door 4 | . . . . . . 3 . . . . 1 . . . Open DSF 1 | . . . . . . . . . 1 . . . . . Branch Access Points 3 | . . . 1 . . . . . 1 . . . . 1 Terminal Index 3 | . . . . . 1 . . . 1 . . . . 1 Garrison Index 1 | . . . . . . 1 . . . . . . . . Alert Level 5 | . . . 1 . 3 1 . . . . . . . . Unreport Threat 6 | . . . 2 . 2 2 . . . . . . . . Locate Traps 5 | . 2 . 1 . 2 . . . . . . . . . Hauler Manifests 5 | . 1 . 1 . 1 1 . . . . . . . 1 Zone Layout 1 | . . . . . 1 . . . . . . . . . Fabricator Hacks 6 | . . . . . . . . . 1 . . . . 5 Load Schematic 4 | . . . . . . . . . 1 . . . . 3 Build 2 | . . . . . . . . . . . . . . 2 Repair Station Hacks 13 | . 1 . 4 . 2 5 . . . . . . . 1 Scan Component 8 | . 1 . 2 . 1 3 . . . . . . . 1 Repair 5 | . . . 2 . 1 2 . . . . . . . . Recycling Unit Hacks . | . . . . . . . . . . . . . . . Scanalyzer 14 | . . . 2 . 9 . . . . . . . . 3 Insert Component 7 | . . . 1 . 5 . . . . . . . . 1 Analyze 7 | . . . 1 . 4 . . . . . . . . 2 Garrison Access Hacks 1 | . . . . . 1 . . . . . . . . . Seal Access 1 | . . . . . 1 . . . . . . . . . Unauthorized Hacks 24 | . 8 . 1 . 3 4 1 . 3 . . . . 4 Terminals 12 | . 4 . 1 . 1 . 1 . 2 . . . . 3 Assimilate 8 | . 3 . . . 1 . . . 1 . . . . 3 Operators 4 | . 1 . 1 . . . 1 . 1 . . . . . Fabricators 2 | . . . . . . . . . 1 . . . . 1 Recompile 2 | . . . . . . . . . 1 . . . . 1 Repair Stations . | . . . . . . . . . . . . . . . Recycling Units 10 | . 4 . . . 2 4 . . . . . . . . Reject 5 | . 2 . . . 1 2 . . . . . . . . Recyclers 3 | . 1 . . . 1 1 . . . . . . . . Mask 2 | . 1 . . . . 1 . . . . . . . . Scanalyzers . | . . . . . . . . . . . . . . . Garrison Access . | . . . . . . . . . . . . . . . Data Cores Recovered 1 | . . . 1 . . . . . . . . . . . Used 1 | . . . 1 . . . . . . . . . . . Hacking Detections 64 | . 8 . 12 . 12 11 2 . 10 . . . . 9 Full Trace Events 11 | . . . 3 . 6 . 1 . . . . . . 1 Feedback Events 1 | . . . . . . . 1 . . . . . . . Corruption 1 | . . . . . . . 1 . . . . . . . Feedback Blocked . | . . . . . . . . . . . . . . . Robot Schematics Acquired 6 | . . . . . . . . . . . . 6 . . Robots Built . | . . . . . . . . . . . . . . . Authchips . | . . . . . . . . . . . . . . . Time . | . . . . . . . . . . . . . . . Total Robot Build Rating . | . . . . . . . . . . . . . . . Part Schematics Acquired 17 | . 1 . 1 . 4 . . . . . . 10 . 1 Parts Built 2 | . . . . . . . . . . . . . . 2 Authchips 2 | . . . . . . . . . . . . . . 2 Time 201 | . . . . . . . . . . . . . . 201 Total Part Build Rating 8 | . . . . . . . . . . . . . . 8 Parts Repaired 5 | . . . 2 . 1 2 . . . . . . . . Time 297 | . . . 52 . 38 207 . . . . . . . . Parts Recycled . | . . . . . . . . . . . . . . . Recycled Matter . | . . . . . . . . . . . . . . . Retrieved Matter . | . . . . . . . . . . . . . . . Retrieved Components . | . . . . . . . . . . . . . . . Parts Scanalyzed 6 | . . . 1 . 4 . . . . . . . . 1 Part Schematics Acquired 6 | . . . 1 . 4 . . . . . . . . 1 Parts Damaged 1 | . . . . . 1 . . . . . . . . . Bothacking | -11 -10 -10 -9 -9 -8 -8 -7 -7 -7 -7 -7 -7 -6 -6 ------------ Run | Yrd Mat Min Mat Min Mat Sto Fac Was Fac Low Low Dat Pro Fac Used RIF Installer . | . . . . . . . . . . . . . . . Robots Hacked . | . . . . . . . . . . . . . . . Non-combat . | . . . . . . . . . . . . . . . Combat . | . . . . . . . . . . . . . . . Robot Hacks Applied . | . . . . . . . . . . . . . . . Relay Couplers Released . | . . . . . . . . . . . . . . . Fabnet Peak Effective % . | . . . . . . . . . . . . . . . Robots Rewired . | . . . . . . . . . . . . . . . Allies Hacked . | . . . . . . . . . . . . . . . Hacks Repelled . | . . . . . . . . . . . . . . . Allies | -11 -10 -10 -9 -9 -8 -8 -7 -7 -7 -7 -7 -7 -6 -6 -------- Run | Yrd Mat Min Mat Min Mat Sto Fac Was Fac Low Low Dat Pro Fac Total Allies 10 | . 1 5 . . 1 1 . . . . . . . 2 Largest Group 5 | . 1 5 5 . 1 2 . . . . . . . 2 Highest-Rated Group 122 | . 10 85 85 . 26 122 . . . . . . . 20 Highest-Rated Ally 100 | . 10 31 31 . 26 100 . . . . . . . 10 Total Orders 1 | . . . . . . . . . . . . . . 1 STAY 1 | . . . . . . . . . . . . . . 1 Ally Attacks 92 | . . 34 26 . . 32 . . . . . . . . Total Damage 1538 | . . 433 315 . . 790 . . . . . . . . Kills 29 | . . 5 7 . . 17 . . . . . . . . Allies Corrupted . | . . . . . . . . . . . . . . . Allies Melted . | . . . . . . . . . . . . . . . Intel | -11 -10 -10 -9 -9 -8 -8 -7 -7 -7 -7 -7 -7 -6 -6 ------- Run | Yrd Mat Min Mat Min Mat Sto Fac Was Fac Low Low Dat Pro Fac Robot Analysis Total 2 | . 2 . . . . . . . . . . . . . Derelict Logs Recovered 10 | . . 2 . 3 . . . . . 2 1 . 2 . Drone Launches . | . . . . . . . . . . . . . . . Drone Recoveries . | . . . . . . . . . . . . . . . Exploration | -11 -10 -10 -9 -9 -8 -8 -7 -7 -7 -7 -7 -7 -6 -6 ------------- Run | Yrd Mat Min Mat Min Mat Sto Fac Was Fac Low Low Dat Pro Fac Turns Passed 16311 | 78 2038 962 2620 792 3679 2550 92 55 757 148 255 29 210 2046 Spaces Moved 11378 | 16 918 586 1014 490 1740 1196 165 127 1407 356 662 77 342 2282 Core 54 | . . . . . 1 . . . . . . . . 53 Treads 5959 | 16 918 586 1014 490 1739 1196 . . . . . . . . Legs . | . . . . . . . . . . . . . . . Wheels . | . . . . . . . . . . . . . . . Hover 5365 | . . . . . . . 165 127 1407 356 662 77 342 2229 Flight . | . . . . . . . . . . . . . . . Fastest Speed 22 | 160 160 160 160 160 160 160 38 38 22 38 38 38 38 38 Average Speed 105 | 160 160 160 160 160 160 165 38 38 38 38 38 38 38 51 Slowest Speed 800 | 160 160 160 160 160 800 170 38 38 106 38 38 38 38 500 Overloaded Moves 35 | . . . . . . . . . 35 . . . . . Propulsion Burnouts . | . . . . . . . . . . . . . . . Robots Hopped . | . . . . . . . . . . . . . . . Cave-ins Triggered . | . . . . . . . . . . . . . . . Exploration Rate (%) 66 | 2 98 98 90 99 78 91 5 82 36 60 76 68 63 46 Regions Visited 14 Branch Regions 7 Pre-discovered Areas 2 | . . . . 1 . . . . . . . 1 . . Known Exits Taken 9 | . . . 1 1 1 1 . . 1 1 1 1 1 . Unknown Exits Taken 3 | 1 1 1 . . . . . . . . . . . . Scrap Searched 19 | . . 1 . 2 . . . . . 3 11 . 2 . Spaces Dug 82 | . . . 8 11 6 1 . . 29 . . . . 27 Terrain Destroyed 254 | . . . 41 27 75 35 . . 49 . . . . 27 Melee 25 | . . . 1 . . 1 . . 5 . . . . 18 Projectile 47 | . . . 7 . 40 . . . . . . . . . AOE 182 | . . . 33 27 35 34 . . 44 . . . . 9 Terrain Rammed . | . . . . . . . . . . . . . . . Walls Destroyed . | . . . . . . . . . . . . . . . Machines Disabled . | . . . . . . . . . . . . . . . Actions | -11 -10 -10 -9 -9 -8 -8 -7 -7 -7 -7 -7 -7 -6 -6 --------- Run | Yrd Mat Min Mat Min Mat Sto Fac Was Fac Low Low Dat Pro Fac Total 14848 | 50 1422 605 1843 494 2470 1681 193 133 1558 360 664 76 421 2878 Wait 2543 | 13 422 8 642 . 535 388 19 4 83 1 2 . 74 352 Move 11365 | 15 917 585 1013 489 1739 1195 165 126 1406 355 661 76 341 2282 Hop . | . . . . . . . . . . . . . . . Pick Up 93 | 3 13 4 19 . 20 7 1 3 6 . 1 . 1 15 Fast Attach 53 | 1 8 . 5 . 13 11 . . 3 . . . 2 10 Attach 33 | 2 . . 2 . 3 . 4 . 1 . . . . 21 Detach 5 | . . . . . 1 . . . . . . . . 4 Swap 155 | 1 7 . 41 2 27 18 1 . 13 . . . 1 44 Drop 141 | 5 19 2 28 . 43 17 2 . 7 . . . 2 16 Fire 375 | 10 34 3 88 3 86 39 1 . 30 4 . . . 77 Melee 66 | . . . 1 . . 6 . . 8 . . . . 51 Ram 7 | . . . . . . . . . 1 . . . . 6 Kick . | . . . . . . . . . . . . . . . Crush 12 | . 2 3 4 . 3 . . . . . . . . . Escape Stasis . | . . . . . . . . . . . . . . . Rewire . | . . . . . . . . . . . . . . . Trap . | . . . . . . . . . . . . . . . Miscellaneous . | . . . . . . . . . . . . . . . Route ------- -11/Scrapyard -10/Materials (discovered 4 exits: *Mat x3 / [*Min]) -10/Mines (discovered 3 exits: *Mat x2 / [*Exi]) -9/Materials (discovered 3 exits: *Mat x2 / *Min) -9/Mines (discovered 2 exits: *Mat x2) -8/Materials -8/Storage (discovered 2 exits: *Fac / *Rec) -7/Factory -7/Waste -7/Factory (discovered 3 exits: *Fac / *Low x2) -7/Lower Caves -7/Lower Caves (discovered 2 exits: *Fac / *Dat) -7/Data Miner -6/Proximity Caves -6/Factory (discovered 5 exits: *Fac / *Low x2 / Ext x2) History --------- Turn | Location | Event 13 | -11/Scrapyard | Discovered new exit (range 2) 79 | -11/Scrapyard | Entered Materials 305 | -10/Materials | Build established: Mutant 888 | -10/Materials | Discovered new exit (range 16) 1226 | -10/Materials | Discovered new exit (range 3) 1735 | -10/Materials | Central database locked down 1762 | -10/Materials | Discovered new exit (range 14) 1974 | -10/Materials | Discovered new exit (range 16) 2117 | -10/Materials | Entered Mines 2117 | -10/Mines | Accompanied by 1 ally 2170 | -10/Mines | Found a hidden stash of uninstalled traps 2220 | -10/Mines | Discovered new exit (range 5) 2287 | -10/Mines | Learned Materials stockpile data 2327 | -10/Mines | Deemed a non-threat by the Exiles lab entrance 2327 | -10/Mines | Discovered new exit (range 5) 2431 | -10/Mines | Assisted by bots powering up and referring to "LRC-V3" 2462 | -10/Mines | Received a Rocket Launcher from a helpful Derelict 2693 | -10/Mines | Discovered new exit (range 11) 2752 | -10/Mines | Learned Materials stockpile data 3079 | -10/Mines | Entered Materials 3079 | -9/Materials | Accompanied by 5 allies 3079 | -9/Materials | Evolved 2 slots: Propulsion x1, Utility x1 3084 | -9/Materials | Led the pair of lost Derelicts to an unsafe place 3609 | -9/Materials | Identified exit to Mines 3684 | -9/Materials | Discovered new exit (range 12) 4052 | -9/Materials | Repaired Lgt. Treads 4079 | -9/Materials | Repaired Lgt. Treads 5587 | -9/Materials | Discovered new exit (range 15) 5699 | -9/Materials | Entered Mines 5701 | -9/Mines | Met a Derelict bent on vengeance 5735 | -9/Mines | Learned location of Zion (-6) 5838 | -9/Mines | Learned Materials garrison access intel 5918 | -9/Mines | A weapon hastily lodged in a ceiling crevice suddenly fell to the ground 6032 | -9/Mines | Discovered new exit (range 13) 6036 | -9/Mines | Identified exit to Materials 6491 | -9/Mines | Entered Materials 6491 | -8/Materials | Evolved 2 slots: Utility x2 6492 | -8/Materials | Discovered new exit (range 15) 6493 | -8/Materials | Loaded intel: 1 garrison access location 6619 | -8/Materials | Identified exit to Storage 6873 | -8/Materials | Build established: Scavenger-Mutant 8239 | -8/Materials | Garrison activated, responded to threat 8637 | -8/Materials | Build established: Mutant 9737 | -8/Materials | Build established: Scavenger-Mutant 9915 | -8/Materials | Repaired Arm. Treads 10170 | -8/Materials | Entered Storage 10170 | -8/Storage | Accompanied by 1 ally 10499 | -8/Storage | Met 01-MTF 10507 | -8/Storage | Build established: Mutant 10568 | -8/Storage | Used back door to open Recycling access 10568 | -8/Storage | Discovered new exit (range 3) 10570 | -8/Storage | Identified exit to Recycling 10729 | -8/Storage | Discovered new exit (range 15) 10752 | -8/Storage | Identified exit to Factory 11294 | -8/Storage | Build established: Scavenger-Mutant 11616 | -8/Storage | Repaired Centrium Light Armor Plating 11717 | -8/Storage | Repaired Mni. Fusion Reactor 12720 | -8/Storage | Entered Factory 12720 | -7/Factory | Evolved 2 slots: Propulsion x1, Utility x1 12768 | -7/Factory | Discovered new exit (range 7) 12770 | -7/Factory | Identified exit to Lower Caves 12812 | -7/Factory | Sucked down chute 12812 | -7/Factory | Entered Waste 12823 | -7/Waste | Spotted C-40 Crusher 12827 | -7/Waste | EMP discharged 12827 | -7/Waste | System corruption reached 10% 12832 | -7/Waste | Spotted C-40 Crusher 12837 | -7/Waste | Spotted C-40 Crusher 12839 | -7/Waste | Spotted C-40 Crusher 12860 | -7/Waste | Spotted C-40 Crusher 12861 | -7/Waste | Spotted C-40 Crusher 12863 | -7/Waste | Discovered new exit (range 12) 12867 | -7/Waste | Identified exit to Factory 12867 | -7/Waste | Entered Factory 12916 | -7/Factory | Identified exit to DSF 12946 | -7/Factory | Discovered exit to Lower Caves (range 13) 13180 | -7/Factory | Discovered new exit (range 15) 13267 | -7/Factory | Garrison activated, responded to threat 13624 | -7/Factory | Entered Lower Caves 13716 | -7/Lower Caves | Learned Factory emergency access door positions 13762 | -7/Lower Caves | Learned Factory garrison access intel 13762 | -7/Lower Caves | Discovered new exit (range 14) 13766 | -7/Lower Caves | Identified exit to Lower Caves 13770 | -7/Lower Caves | Spotted B-75 Beast 13772 | -7/Lower Caves | Entered another Lower Caves area 13787 | -7/Lower Caves | Encountered a Warlord checkpoint 13792 | -7/Lower Caves | Discovered new exit (range 8) 13796 | -7/Lower Caves | Identified exit to Factory 13953 | -7/Lower Caves | Discovered new exit (range 7) 13961 | -7/Lower Caves | Identified exit to Data Miner 13970 | -7/Lower Caves | Learned Factory trap positions 14027 | -7/Lower Caves | Entered Data Miner 14027 | -7/Data Miner | Discovered new exit (range 6) 14029 | -7/Data Miner | Identified exit to Proximity Caves 14035 | -7/Data Miner | Met Data Miner 14042 | -7/Data Miner | Learned location of Section 7 (-2) 14042 | -7/Data Miner | Acquired the access code to Warlord's prototype stash 14048 | -7/Data Miner | Received God Mode back door access code from Data Miner 14056 | -7/Data Miner | Entered Proximity Caves 14077 | -6/Proximity Caves | Learned 4 Factory zone layouts 14266 | -6/Proximity Caves | Entered Factory 14266 | -6/Factory | Evolved 2 slots: Power x1, Utility x1 14268 | -6/Factory | Loaded intel: 103 trap records 14270 | -6/Factory | Loaded intel: 4 garrison access locations 14431 | -6/Factory | Fabricated Cld. Airjet (x1) 14446 | -6/Factory | Discovered new exit (range 4) 14448 | -6/Factory | Identified exit to Lower Caves 14882 | -6/Factory | Identified exit to Extension 15184 | -6/Factory | Discovered new exit (range 5) 15185 | -6/Factory | Identified exit to Factory 15388 | -6/Factory | Lost 4 parts (1p2n1u) 15435 | -6/Factory | Build established: Hacker-Mutant 15873 | -6/Factory | Fabricated Imp. Airjet (x1) 16122 | -6/Factory | Core integrity fell below 50% 16159 | -6/Factory | Lost 15 parts (2p4n4u5w) 16294 | -6/Factory | Core integrity fell below 20% 16312 | -6/Factory | Destroyed by Y-54 Guardian with Gatling Laser Last Messages --------------- 16273_ Sneak attack on U-05 Engineer. 16273_ Destroyed Structural Scanner. 16273_ U-05 Engineer system corrupted by crushing effect. 16273_ U-05 Engineer knocked back. 16273_ K-01 Serf collects debris. 16274_ U-05 Engineer system terminally corrupted. 16274_ Terrain Scan Processor fried. 16276_ K-01 Serf collects debris. 16290_ Lgt. Ion Engine destroyed. 16293_ Great Maul destroyed. 16295_ Slammed into Y-54 Guardian. 16297_ Destabilizing: System corrupted (+2). 16298_ L/VLUTN MYLX>EOR8MU%=VJJXOC 16298_ Slammed into Y-54 Guardian. 16299_ Adv. Weight Redist. System destroyed. 16300_ Slammed into Y-54 Guardian. 16305_ Acquired 5 matter. 16306_ Y-54 Guardian misfires. 16308_ Acquired 2 matter. 16309_ Imp. Proton Missile Launcher destroyed. Map ----- +----------------------------------------------------+ | % #??????????????????????????? #???????# | | #+######??????????????????????????? ######### | | #????????????????????????????? ^ | | #????????????????????????????? ^ ^ | | #????????????????????????????? ^""" """ """ " | | #????????????????????????????? """ """ """ " | | #???????????????????????????????????????????? | | #???????????????????????????????????????????? | | ###########+##########??????????????????????? | | ????????????????????? | | ????????????????????? | | ????????????????????? | | """" """" ??????????????????????? | | """" "??????????????????????????? | | ####### """"????????????????"???????????? | | #?????? """"??????????????" "???????????? | | #?????? """"??????????????" ????????????? | | #?????? """??????????????""?????????????? | | #?????? """?????????????""??????????????? | | ^^^^^ ^#?????? ???????????? ???????????????? | | ####### ???????????? ????????????????? | | ! ######??????????? #????????????????? | | #??????????????? #????????????????? | | """" ######????????? #????""??????????? | | "F " ########## + ""T"??????????? | | u %t %%@ Y #????????????????? | | !!! ######## #####????????????????? | | !!! ##??????#%#????????????????????? | | !!! #???????#=#????????????????????? | | #???????#%#????????????????????? | | ###### [[= #???????# #????????????????????? | | # [[= ### #???????# #????????????????????? | | != # [== #???#???????# #????????????????????? | | != # #???????????# #????????????????????? | | ! + #???????????# #????????????????????? | | #+####+###????######## ##???????????????????? | | #?????????????# #???????????????????? | | ######?????????????# #???????????????????? | | ???????????????????# #???????????????????? | | ???????????????????# #???????????????????? | | ???????????????????# #???????????????????? | | ???????????????????# #???????????????????? | | ???????????????????# #???????????????????? | | ???????????????????# #???????????????????? | | ???????????????????# ##########??????????? | | ?????+?????????????### ############??????????? | | ?????????????????????# # % #???????????? | | ?????????????????????# %#% = " #???????????? | | ?????????????????????# %/% " #???????????? | | ?????????????????????# %#% "" #???????????? | +----------------------------------------------------+ Best States ------------- Heat Dissipation 64 Energy Generation 39 Energy Capacity 290 Matter Stores 300 Matter Capacity 300 Sight Range 22 Robot Scan Range 16 Terrain Scan Density 10 Jamming Range 14 Power Amplification 20 Additional Mass Support 12 Armor Coverage 300 Evasion (%) 60 Recoil Reduction 3 Offensive Hacking 26 Authchip Count 1 Item Schematics ----------------- Huge Storage Unit | -10/Materials | Hacked Imp. Terrain Scanner | -9/Materials | Scanalyzed Hacking Suite | -8/Materials | Scanalyzed Cld. Airjet | -8/Materials | Scanalyzed Imp. Airjet | -8/Materials | Scanalyzed Cooling System | -8/Materials | Scanalyzed Combat Drone Bay | -7/Data Miner | Free Lgt. Regenerative Plating | -7/Data Miner | Free Cld. Cesium-ion Thruster | -7/Data Miner | Free Thermal Defense Suite | -7/Data Miner | Free Antimatter Cannon | -7/Data Miner | Free Gyrokinetic Inverter | -7/Data Miner | Free Imp. Recalibrator | -7/Data Miner | Free Disruptor Cannon | -7/Data Miner | Free KE Penetrator | -7/Data Miner | Free Adv. Focal Shield | -7/Data Miner | Free Centrium Light Armor Plating | -6/Factory | Scanalyzed Robot Schematics ------------------ H-55 Commando | -7/Data Miner | Free M-28 Smith | -7/Data Miner | Free G-50 Soldier | -7/Data Miner | Free O-24 Administrator | -7/Data Miner | Free B-60 Warrior | -7/Data Miner | Free L-41 Fighter | -7/Data Miner | Free Fabricated ------------ Cld. Airjet | x1 | -6/Factory | Authchip Imp. Airjet | x1 | -6/Factory | Authchip Alien Tech Used ----------------- None Achievements -------------- Can't Catch Me Whoosh! Challenges ------------ None Game ------ Seed MetafiberNeutrinoMinigun Manual? 0 Play Time 03:52:48 Cumulative 76.3 hours Start 2024.04.30 @ 13:56:04 End 2024.04.30 @ 23:33:20 Sessions 1 Manual Loads 0 Difficulty Rogue Special Mode None Game No. 47 Rogue 47 Adventurer 0 Explorer 0 Win Type - Total 0 Types 0/0/0/0/0/0/0/0/0 Lore% 29 Gallery% 42 Achievement% 34 Wizard Run 0 Options --------- Layout 0 ASCII 0 Keyboard 0 Movement Numpad Keybinds 1 Fullscreen 1 Font 18/SmallcapsGlow Map View 76x50 Zoom Use 0% Tactical HUD 1 Map Filters NONE Filters NONE Steam 1 RUN: 5a62ea39-1c66-41a6-a33e-87df7ad3b63f